Cogmind - Beta 10.1 @@@ ROGUE MODE // 2020.09.27 @ 17:34:47 Player: Raine Result: Destroyed by G-34 Mercenary with Small Laser Performance ------------- Evolutions (0) 0 Regions Visited (1) 200 Robots Destroyed (17) 85 Value Destroyed (290) 290 Prototype IDs (0) 0 Alien Tech Used (0) 0 Bonus (0) 0 TOTAL SCORE: 575 Bonus ------- None Cogmind --------- Core Integrity 0/250 Matter 300/300 Energy 100/100 System Corruption 2% Temperature Cool (6) Movement Walking (120) Location -10/Materials Parts ------- > --- POWER (1) -------- (None) > --- PROPULSION (2) --- Aluminum Leg > --- UTILITY (2) ------ (None) > --- WEAPON (2) ------- (None) > --- INVENTORY (4) ---- Small Storage Unit High-capacity Storage Unit High-capacity Storage Unit Improved Terrain Scanner Peak State ------------ > --- POWER ------------ Ion Engine > --- PROPULSION ------- Light Treads Light Treads > --- UTILITY ---------- Small Storage Unit High-capacity Storage Unit > --- WEAPON ----------- Beam Cannon Light Assault Rifle > --- INVENTORY -------- Ion Engine Wheel Wheel Wheel Small Storage Unit High-capacity Storage Unit Improved Terrain Scanner Mining Laser Mining Laser [Rating: 8] Favorites ----------- Power Ion Engine Engine Ion Engine Propulsion Light Treads Treads Light Treads Leg Aluminum Leg Wheel Wheel Hover Unit Backup Propulsion I Utility Small Storage Unit Storage Small Storage Unit Weapon Beam Cannon Energy Gun Medium Laser Energy Cannon Beam Cannon Ballistic Gun Light Assault Rifle Special Weapon Mining Laser Build | -11 -10 ------- Run | Scr Mat Slots Evolved . | . . Power . | . . Propulsion . | . . Utility . | . . Weapon . | . . Parts Attached 23 | 6 17 Power 3 | 1 2 Engine 3 | 1 2 Core . | . . Reactor . | . . Propulsion 9 | 2 7 Treads 5 | 2 3 Leg 1 | . 1 Wheel 3 | . 3 Hover . | . . Flight . | . . Utility 4 | 2 2 Device . | . . Storage 4 | 2 2 Processor . | . . Hackware . | . . Protection . | . . Artifact . | . . Weapon 7 | 1 6 Energy Gun 2 | . 2 Energy Cannon 1 | . 1 Ballistic Gun 2 | 1 1 Ballistic Cannon . | . . Launcher . | . . Special Weapon 2 | . 2 Impact Weapon . | . . Slashing Weapon . | . . Piercing Weapon . | . . Special Melee Weapon . | . . Unidentified Prototypes . | . . Parts Lost 15 | . 15 Power 2 | . 2 Propulsion 6 | . 6 Utility 1 | . 1 Weapon 6 | . 6 Highest Loss Streak 6 | . 6 Average Slot Usage (%) 79 | . 79 Engine 12 | . 12 Treads 21 | . 21 Wheel 4 | . 4 Storage 21 | . 21 Energy Gun 1 | . 1 Energy Cannon 6 | . 6 Ballistic Gun 6 | . 6 Special Weapon 2 | . 2 Naked Turns . | . . Heaviest Build 45 | 15 45 Greatest Support 40 | 40 40 Greatest Overweight (x) 12 | . 12 Average Overweight (x) 1 | . 2 Largest Inventory Capacity 14 | 8 14 Average Capacity 11 | 7 12 Most Carried 11 | 8 11 Average Carried 6 | 5 7 Final Capacity 8 | 8 4 Final Carried 8 | 8 4 Class Distribution -------------------- 100% | Mutant Dominant Class ---------------- Mutant | -10/Materials Resources | -11 -10 ----------- Run | Scr Mat Matter Collected 432 | 320 112 Remotely . | . . Salvage Created 386 | 203 183 Parts 31 | 21 10 Haulers Intercepted . | . . Recyclers Shooed . | . . Parts Field Recycled . | . . Retrieved Matter . | . . Parts Self-Destructed . | . . Prevented . | . . Kills | -11 -10 ------- Run | Scr Mat Combat Hostiles Destroyed 9 | . 9 Melee 2 | . 2 Cannons 7 | . 7 Classes Destroyed 5 | 3 2 Worker 2 | 2 . Tunneler 5 | 5 . Recycler 1 | 1 . Swarmer 3 | . 3 Grunt 6 | . 6 Best Kill Streak 4 | 4 3 Combat Bots Only 3 | . 3 Max Kills in Single Turn 1 | 1 1 Gunslinging . | . . Exploded . | . . Melee 1 | . 1 Uniques/NPCs Destroyed . | . . Combat | -11 -10 -------- Run | Scr Mat Damage Taken 1322 | . 1322 Core 259 | . 259 Absorbed by Shields . | . . Core Remaining (%) 100 | 100 . Volleys Fired 58 | 20 38 Largest 2 | 1 2 Hottest 200 | 20 200 Shots Fired 85 | 20 65 Gun 46 | 20 26 Cannon 24 | . 24 Launcher . | . . Special 15 | . 15 Kinetic 39 | 20 19 Thermal 46 | . 46 Explosive . | . . Electromagnetic . | . . Robot Hit Streak 11 | 9 11 Robot Miss Streak 3 | 2 3 Penetration Max . | . . Secondary Targets . | . . Shots Hit Robots 60 | 16 44 Core Hits 35 | 9 26 Critical Hits . | . . Critical Kills . | . . Critical Parts Destroyed . | . . Melee Attacks . | . . Impact . | . . Slashing . | . . Piercing . | . . Sneak Attacks . | . . Combat Hostiles . | . . Follow-up Attacks . | . . Damage Inflicted 1026 | 217 809 Guns 383 | 217 166 Cannons 280 | . 280 Explosions . | . . Melee . | . . Ramming 99 | . 99 Kinetic 296 | 217 79 Thermal 631 | . 631 Explosive . | . . Electromagnetic . | . . Impact . | . . Slashing . | . . Piercing . | . . Highest Corruption 2 | . 2 Average Corruption 2 | . 2 Corruption Purged . | . . Effects 1 | . 1 Message Errors 1 | . 1 Overload Shots . | . . Overflow Damage 16 | . 16 Projectiles 16 | . 16 Explosions . | . . Melee . | . . Knockbacks . | . . Impact . | . . Kinetic . | . . Secondary . | . . Self-Inflicted Damage 24 | . 24 Shots . | . . Rammed 36 | . 36 Targets Rammed 40 | . 40 Kicked 4 | . 4 Crushed . | . . Highest Temperature 456 | . 456 Average Temperature 191 | . 191 Received Heat Transfer 795 | . 795 Effects 9 | . 9 Energy Bleed 3 | . 3 Short Circuit 4 | . 4 Damage (major) 2 | . 2 Siege Activations . | . . Robots Corrupted . | . . Combat Hostiles . | . . Parts Fried . | . . Impact Corruptions . | . . Robots Melted . | . . Combat Hostiles . | . . Parts Melted 3 | . 3 Heat Transferred 1401 | . 1401 Parts Sabotaged . | . . Parts Stolen . | . . Parts Stripped . | . . Power Chain Reactions . | . . Missiles Intercepted . | . . Alert | -11 -10 ------- Run | Scr Mat Peak Influence 208 | 40 208 Initial 26 | . 26 Average 70 | 22 83 Maximum Alert Level 1 | . 1 Low Security (%) 97 | 100 96 Level 1 2 | . 3 Level 2 . | . . Level 3 . | . . Level 4 . | . . Level 5 . | . . High Security . | . . Max Security . | . . Squads Dispatched 2 | . 2 Investigation 1 | . 1 Extermination . | . . Reinforcement 1 | . 1 Assault . | . . Garrison . | . . Intercept . | . . Construction Impeded . | . . Haulers Reinforced . | . . Stealth | -11 -10 --------- Run | Scr Mat Distress Signals 2 | . 2 Communications Jammed . | . . Distress Signals . | . . Times Spotted 23 | . 23 Peak Tracking Total 5 | . 5 Tactical Retreats 2 | . 2 Traps | -11 -10 ------- Run | Scr Mat Traps Triggered 1 | . 1 Indirectly . | . . Trap Hack Attempts . | . . Triggered . | . . Disarmed . | . . Reprogrammed . | . . Reused . | . . Traps Extracted . | . . Installed . | . . Triggered . | . . Machines | -11 -10 ---------- Run | Scr Mat Machines Disabled . | . . Max in Single Turn . | . . Machines Sabotaged . | . . Garrisons Compromised . | . . Overloaded Fab Kills . | . . Fab Network Shutdowns . | . . Hacking | -11 -10 --------- Run | Scr Mat Machines Accessed 2 | . 2 Terminals 1 | . 1 Fabricators . | . . Repair Stations 1 | . 1 Recycling Units . | . . Scanalyzers . | . . Garrison Access . | . . Total Hacks 10 | . 10 Successful 6 | . 6 Failed 4 | . 4 Catastrophic . | . . Database Lockouts . | . . Manual 3 | . 3 Terminals 6 | . 6 Fabricators . | . . Repair Stations 4 | . 4 Recycling Units . | . . Scanalyzers . | . . Garrison Access . | . . Terminal Hacks 2 | . 2 Terminal Index 1 | . 1 Registered Components 1 | . 1 Fabricator Hacks . | . . Repair Station Hacks 3 | . 3 Scan Component 1 | . 1 Repair 1 | . 1 Refit 1 | . 1 Recycling Unit Hacks . | . . Scanalyzer . | . . Garrison Access Hacks . | . . Unauthorized Hacks 1 | . 1 Terminals 1 | . 1 Botnet 1 | . 1 Fabricators . | . . Repair Stations . | . . Recycling Units . | . . Scanalyzers . | . . Garrison Access . | . . Data Cores Recovered . | . . Used . | . . Hacking Detections 1 | . 1 Full Trace Events . | . . Feedback Events . | . . Feedback Blocked . | . . Robot Schematics Acquired . | . . Robots Built . | . . Matter . | . . Time . | . . Total Robot Build Rating . | . . Part Schematics Acquired . | . . Parts Built . | . . Matter . | . . Time . | . . Total Part Build Rating . | . . Parts Repaired 1 | . 1 Time 26 | . 26 Parts Recycled . | . . Recycled Matter . | . . Retrieved Matter . | . . Retrieved Components . | . . Parts Scanalyzed . | . . Part Schematics Acquired . | . . Parts Damaged . | . . Bothacking | -11 -10 ------------ Run | Scr Mat Used RIF Installer . | . . Robots Hacked . | . . Non-combat . | . . Combat . | . . Robot Hacks Applied . | . . Relay Couplers Released . | . . Robots Rewired . | . . Allies Hacked . | . . Hacks Repelled . | . . Allies | -11 -10 -------- Run | Scr Mat Total Allies . | . . Largest Group . | . . Highest-Rated Group . | . . Highest-Rated Ally . | . . Total Orders . | . . Ally Attacks . | . . Total Damage . | . . Kills . | . . Allies Corrupted . | . . Allies Melted . | . . Intel | -11 -10 ------- Run | Scr Mat Robot Analysis Total . | . . Derelict Logs Recovered . | . . Drone Launches . | . . Drone Recoveries . | . . Exploration | -11 -10 ------------- Run | Scr Mat Turns Passed 882 | 196 686 Spaces Moved 233 | 90 143 Core 31 | 6 25 Treads 184 | 84 100 Legs 2 | . 2 Wheels 16 | . 16 Hover . | . . Flight . | . . Fastest Speed 50 | 50 100 Average Speed 210 | 152 247 Slowest Speed 650 | 160 650 Overloaded Moves . | . . Propulsion Burnouts . | . . Robots Hopped . | . . Cave-ins Triggered . | . . Exploration Rate (%) 13 | 7 19 Regions Visited 1 Branch Regions . Pre-discovered Areas . | . . Known Exits Taken . | . . Unknown Exits Taken 1 | 1 . Scrap Searched . | . . Spaces Dug . | . . Terrain Destroyed 3 | . 3 Melee . | . . Projectile 3 | . 3 AOE . | . . Terrain Rammed . | . . Walls Destroyed . | . . Machines Disabled . | . . Actions | -11 -10 --------- Run | Scr Mat Total 478 | 127 351 Wait 107 | . 107 Move 232 | 89 143 Hop . | . . Pick Up 12 | 10 2 Fast Attach 11 | 6 5 Attach 9 | . 9 Detach 2 | . 2 Swap 3 | . 3 Drop 4 | 2 2 Fire 58 | 20 38 Melee . | . . Ram 15 | . 15 Kick 16 | . 16 Crush 9 | . 9 Escape Stasis . | . . Rewire . | . . Trap . | . . Miscellaneous . | . . Route ------- -11/Scrapyard -10/Materials History --------- Turn | Location | Event 11 | -11/Scrapyard | Discovered new exit (range 15) 197 | -11/Scrapyard | Entered Materials 309 | -10/Materials | Build established: Mutant 620 | -10/Materials | Core integrity fell below 50% 646 | -10/Materials | Lost 6 parts (1p2n1u2w) 863 | -10/Materials | Repaired Hcp. Storage Unit 863 | -10/Materials | Core integrity fell below 20% 883 | -10/Materials | Destroyed by G-34 Mercenary with Small Laser Last Messages --------------- 00858_ G-34 Mercenary destroyed. 00858_ Backup Propulsion I permanently disabled. 00858_ Destabilizing: Short circuit. 00859_ Acquired 11 matter. 00860_ Broken Backup Propulsion I destroyed. 00860_ Acquired Aluminum Leg. 00862_ Slammed into G-47 Trooper. 00863_ Repair station completes Hcp. Storage Unit repairs. 00863_ Slammed into G-47 Trooper. 00867_ Kicked G-47 Trooper out of the way. 00868_ Slammed into G-47 Trooper. 00869_ Kicked G-47 Trooper out of the way. 00870_ Slammed into G-47 Trooper. 00873_ Kicked G-47 Trooper out of the way. 00875_ Slammed into G-47 Trooper. 00876_ Destabilizing: Core damaged (-7). 00878_ Slammed into G-47 Trooper. 00878_ Ion Engine destroyed. 00879_ Slammed into G-47 Trooper. 00880_ Wheel destroyed. Map ----- +----------------------------------------------------+ | ???????????????????????????????????????????????? | | ????????????????????????????############???????? | | ????????????????????????????# [# #???????? | | ????????????????????????????# # #???????? | | ????????????????????????????# # #???????? | | ????????????????????????????# "T" + #???????? | | ????????????????????????????# """ # #???????? | | ????????????????????????????# # ########? | | ????????????????????????????######## # #? | | ???????????????????????????????????# # ! ! #? | | ???????????????????????????????????# #! ! #? | | ???????????????????????????????????# %# ! #? | | ???????????????????????????????????# %+ #? | | ???????????????????????????????????# # #? | | ???????????????????????????????????# ########? | | ???????????????????????????????????# ######### | | ???????????????????????????????????# #%%%% | | ???????????????????????????????????# %# %% | | ?????????????????##+???????????????# %#%%% | | ????????????????# ###+########## %+%%% | | ???????????????? = %#%%% | | ???????????????? ######### | | ???????????????? [ | | ????????????????????? ####### [[ | | ?????????????????????######## [[ | | ?????????????????????#%@g # ## | | ?????????????????????#%%%kgrg g | | ?????????????????????#%%""" # | | ?????????????????????#%%!R" # #### | | ?????????????????????#%%""" # #??# | | ?????????????????????# %% #####??### ##### | | ?????????????????????########????????? #????# | | ?????????????????????????????????????? #?????? | | ?????????????????????????????????????? #?????? | | ?????????????????????????????????????? #?????? | | ?????????????????????????????????????? ??????? | | ???????????????????????????????????????????????? | | ???????????????????????????????????????????????? | | ???????????????????????????????????????????????? | | ???????????????????????????????????????????????? | | ???????????????????????????????????????????????? | | ???????????????????????????????????????????????? | | ???????????????????????????????????????????????? | | ???????????????????????????????????????????????? | | ???????????????????????????????????????????????? | | ???????????????????????????????????????????????? | | ???????????????????????????????????????????????? | | ???????????????????????????????????????????????? | | ???????????????????????????????????????????????? | | ???????????????????????????????????????????????? | +----------------------------------------------------+ Best States ------------- Heat Dissipation 25 Energy Generation 10 Energy Capacity 250 Matter Stores 300 Matter Capacity 300 Sight Range 16 Terrain Scan Density 10 Evasion (%) 40 Recoil Reduction 2 Item Schematics ----------------- None Robot Schematics ------------------ None Fabricated ------------ Nothing Alien Tech Used ----------------- None Achievements -------------- None Challenges ------------ None Game ------ Seed GrenadeDisruptorRigger Manual? 0 Play Time 00:13:45 Cumulative 656.5 hours Start 2020.09.27 @ 17:14:39 End 2020.09.27 @ 17:34:47 Sessions 1 Manual Loads 0 Difficulty Rogue Special Mode None Game No. 551 Rogue 529 Adventurer 3 Explorer 19 Win Type - Total 57 Types 46/3/4/3/1/0/0/0/0 Lore% 89 Gallery% 90 Achievement% 94 Wizard Run 0 Options --------- ASCII 0 Keyboard 1 Movement Numpad Keybinds 1 Fullscreen 2 Font 18/SmallcapsGlow Map View 76x50 Tactical HUD 1 Map Filters NONE Filters NONE Steam 1 RUN: 0f81139f-d4a4-48ea-99ba-df57a5f1deba